[Event "Titled Tuesday Blitz April 26 Early 2022"]
[White "Ronka, Erik"]
[Black "Mikhnenko, Alexander"]
[WhiteFideId "505080"]
[BlackFideId "34143014"]
[WhiteElo "2264"]
[BlackElo "2117"]
[Result "1-0"]
[Round "06"]
[TimeControl "180+1"]
[Date "2022.04.26"]
[WhiteClock "0:00:40"]
[BlackClock "0:00:03"]

1. d4 {[%clk 0:03:00]}  Nf6 {[%clk 0:03:00]} 2. Nf3 {[%clk 0:03:01]}  d6 {[%clk 0:03:00]} 3. g3 {[%clk 0:02:57]}  g6 {[%clk 0:02:59]} 4. Bg2 {[%clk 0:02:57]}  Bg7 {[%clk 0:03:00]} 5. O-O {[%clk 0:02:58]}  O-O {[%clk 0:03:01]} 6. b3 {[%clk 0:02:58]}  Nbd7 {[%clk 0:02:59]} 7. Bb2 {[%clk 0:02:58]}  e5 {[%clk 0:02:57]} 8. dxe5 {[%clk 0:02:59]}  Ng4 {[%clk 0:02:57]} 9. Qc1 {[%clk 0:02:59]}  Ngxe5 {[%clk 0:02:54]} 10. c4 {[%clk 0:02:59]}  a5 {[%clk 0:02:39]} 11. Nc3 {[%clk 0:02:56]}  Re8 {[%clk 0:01:59]} 12. Qd2 {[%clk 0:02:53]}  Nc5 {[%clk 0:01:47]} 13. Rfd1 {[%clk 0:02:50]}  a4 {[%clk 0:01:41]} 14. Nd4 {[%clk 0:02:42]}  axb3 {[%clk 0:01:37]} 15. axb3 {[%clk 0:02:43]}  Rxa1 {[%clk 0:01:34]} 16. Bxa1 {[%clk 0:02:41]}  c6 {[%clk 0:01:27]} 17. Qc2 {[%clk 0:02:40]}  Qb6 {[%clk 0:01:23]} 18. e3 {[%clk 0:02:35]}  Bf5 {[%clk 0:01:16]} 19. Nxf5 {[%clk 0:02:32]}  gxf5 {[%clk 0:01:16]} 20. Rb1 {[%clk 0:02:23]}  Ra8 {[%clk 0:01:12]} 21. Na4 {[%clk 0:02:02]}  Nxa4 {[%clk 0:00:49]} 22. bxa4 {[%clk 0:02:02]}  Qa6 {[%clk 0:00:49]} 23. Qxf5 {[%clk 0:01:58]}  Qxa4 {[%clk 0:00:46]} 24. h4 {[%clk 0:01:52]}  Qxc4 {[%clk 0:00:46]} 25. Be4 {[%clk 0:01:46]}  Nf3+ {[%clk 0:00:26]} 26. Bxf3 {[%clk 0:01:42]}  Bxa1 {[%clk 0:00:25]} 27. Be4 {[%clk 0:01:41]}  b5 {[%clk 0:00:21]} 28. Qxh7+ {[%clk 0:01:38]}  Kf8 {[%clk 0:00:21]} 29. Kg2 {[%clk 0:01:14]}  Bg7 {[%clk 0:00:21]} 30. h5 {[%clk 0:01:11]}  d5 {[%clk 0:00:20]} 31. Bd3 {[%clk 0:01:10]}  Qc3 {[%clk 0:00:20]} 32. h6 {[%clk 0:01:10]}  Bf6 {[%clk 0:00:21]} 33. Qf5 {[%clk 0:01:07]}  Ke7 {[%clk 0:00:21]} 34. h7 {[%clk 0:01:07]}  Qe5 {[%clk 0:00:21]} 35. Qf3 {[%clk 0:01:05]}  Rb8 {[%clk 0:00:14]} 36. Rc1 {[%clk 0:01:04]}  Kd6 {[%clk 0:00:14]} 37. Qe2 {[%clk 0:01:00]}  b4 {[%clk 0:00:14]} 38. Qc2 {[%clk 0:01:00]}  Qc3 {[%clk 0:00:13]} 39. Qb1 {[%clk 0:00:59]}  Qe5 {[%clk 0:00:13]} 40. Qb3 {[%clk 0:00:54]}  c5 {[%clk 0:00:07]} 41. Rd1 {[%clk 0:00:49]}  Ke7 {[%clk 0:00:06]} 42. Be2 {[%clk 0:00:48]}  c4 {[%clk 0:00:07]} 43. Qa4 {[%clk 0:00:48]}  Qe6 {[%clk 0:00:04]} 44. Bf3 {[%clk 0:00:48]}  Rd8 {[%clk 0:00:03]} 45. Qxb4+ {[%clk 0:00:45]}  Qd6 {[%clk 0:00:04]} 46. Qb7+ {[%clk 0:00:44]}  Rd7 {[%clk 0:00:04]} 47. Qb5 {[%clk 0:00:43]}  c3 {[%clk 0:00:04]} 48. Rxd5 {[%clk 0:00:43]}  Qxd5 {[%clk 0:00:03]} 49. Bxd5 {[%clk 0:00:44]}  c2 {[%clk 0:00:04]} 50. Qc5+ {[%clk 0:00:42]}  Ke8 {[%clk 0:00:04]} 51. Be4 {[%clk 0:00:41]}  Bb2 {[%clk 0:00:03]} 52. Qxc2 {[%clk 0:00:40]} 1-0


[Site "https://www.chess.com"]

[Event "Titled Tuesday Blitz April 26 Early 2022"]
[White "Rosenberg, Evan S"]
[Black "Noboa Silva, Kevin"]
[WhiteFideId "2019299"]
[BlackFideId "3618471"]
[WhiteElo "2360"]
[BlackElo "2172"]
[Result "0-1"]
[Round "06"]
[TimeControl "180+1"]
[Date "2022.04.26"]
[WhiteClock "0:00:01"]
[BlackClock "0:00:41"]

1. Nf3 {[%clk 0:03:00]}  Nf6 {[%clk 0:02:56]} 2. c4 {[%clk 0:03:00]}  c5 {[%clk 0:02:53]} 3. Nc3 {[%clk 0:03:00]}  b6 {[%clk 0:02:53]} 4. g3 {[%clk 0:02:59]}  Bb7 {[%clk 0:02:53]} 5. Bg2 {[%clk 0:03:00]}  e6 {[%clk 0:02:53]} 6. O-O {[%clk 0:03:00]}  a6 {[%clk 0:02:54]} 7. d4 {[%clk 0:03:00]}  cxd4 {[%clk 0:02:54]} 8. Qxd4 {[%clk 0:03:01]}  d6 {[%clk 0:02:54]} 9. Bg5 {[%clk 0:02:57]}  Nbd7 {[%clk 0:02:54]} 10. Rfd1 {[%clk 0:02:43]}  Be7 {[%clk 0:02:52]} 11. Bxf6 {[%clk 0:02:25]}  Nxf6 {[%clk 0:02:52]} 12. Qf4 {[%clk 0:02:24]}  O-O {[%clk 0:02:49]} 13. b3 {[%clk 0:01:42]}  Qc7 {[%clk 0:02:46]} 14. Rac1 {[%clk 0:01:40]}  Rac8 {[%clk 0:02:45]} 15. h4 {[%clk 0:01:38]}  Rfd8 {[%clk 0:02:40]} 16. Ng5 {[%clk 0:01:35]}  Bxg2 {[%clk 0:02:39]} 17. Kxg2 {[%clk 0:01:35]}  Qb7+ {[%clk 0:02:36]} 18. Kg1 {[%clk 0:01:29]}  b5 {[%clk 0:02:34]} 19. cxb5 {[%clk 0:01:28]}  axb5 {[%clk 0:02:35]} 20. Nce4 {[%clk 0:01:26]}  Rxc1 {[%clk 0:02:34]} 21. Rxc1 {[%clk 0:01:21]}  h6 {[%clk 0:02:25]} 22. Nxf6+ {[%clk 0:01:08]}  Bxf6 {[%clk 0:02:06]} 23. Ne4 {[%clk 0:01:08]}  Be7 {[%clk 0:02:06]} 24. Qf3 {[%clk 0:00:48]}  d5 {[%clk 0:01:53]} 25. Nc5 {[%clk 0:00:45]}  Qa7 {[%clk 0:01:49]} 26. Nd3 {[%clk 0:00:33]}  Qxa2 {[%clk 0:01:41]} 27. Rc7 {[%clk 0:00:33]}  Qa1+ {[%clk 0:01:35]} 28. Kg2 {[%clk 0:00:32]}  Qf6 {[%clk 0:01:35]} 29. Qxf6 {[%clk 0:00:17]}  Bxf6 {[%clk 0:01:36]} 30. Rb7 {[%clk 0:00:17]}  e5 {[%clk 0:01:35]} 31. Rxb5 {[%clk 0:00:17]}  e4 {[%clk 0:01:34]} 32. Nf4 {[%clk 0:00:16]}  d4 {[%clk 0:01:32]} 33. Nd5 {[%clk 0:00:13]}  d3 {[%clk 0:01:27]} 34. exd3 {[%clk 0:00:07]}  exd3 {[%clk 0:01:28]} 35. Ne3 {[%clk 0:00:06]}  d2 {[%clk 0:01:23]} 36. Nd1 {[%clk 0:00:05]}  Rd3 {[%clk 0:01:20]} 37. Kf1 {[%clk 0:00:05]}  g5 {[%clk 0:01:07]} 38. hxg5 {[%clk 0:00:05]}  Bxg5 {[%clk 0:01:06]} 39. Ke2 {[%clk 0:00:05]}  Rd6 {[%clk 0:01:00]} 40. f4 {[%clk 0:00:05]}  Bf6 {[%clk 0:00:57]} 41. Rb8+ {[%clk 0:00:05]}  Kg7 {[%clk 0:00:57]} 42. Re8 {[%clk 0:00:04]}  h5 {[%clk 0:00:55]} 43. Re3 {[%clk 0:00:05]}  Kg6 {[%clk 0:00:54]} 44. Rd3 {[%clk 0:00:05]}  Rxd3 {[%clk 0:00:51]} 45. Kxd3 {[%clk 0:00:06]}  Kf5 {[%clk 0:00:51]} 46. Kxd2 {[%clk 0:00:06]}  Kg4 {[%clk 0:00:51]} 47. Nf2+ {[%clk 0:00:05]}  Kf3 {[%clk 0:00:50]} 48. Nd3 {[%clk 0:00:04]}  Kxg3 {[%clk 0:00:48]} 49. b4 {[%clk 0:00:04]}  h4 {[%clk 0:00:47]} 50. Ke2 {[%clk 0:00:03]}  h3 {[%clk 0:00:45]} 51. Nf2 {[%clk 0:00:03]}  h2 {[%clk 0:00:43]} 52. b5 {[%clk 0:00:01]}  Bd4 {[%clk 0:00:41]} 0-1


[Site "https://www.chess.com"]

[Event "Titled Tuesday Blitz April 26 Early 2022"]
[White "Saim, Mohamed Ilias"]
[Black "Van den Dikkenberg, Erik"]
[WhiteFideId "7900465"]
[BlackFideId "1005880"]
[WhiteElo "2006"]
[BlackElo "2118"]
[Result "0-1"]
[Round "06"]
[TimeControl "180+1"]
[Date "2022.04.26"]
[WhiteClock "0:00:02"]
[BlackClock "0:00:26"]

1. d4 {[%clk 0:03:00]}  Nf6 {[%clk 0:02:59]} 2. Nf3 {[%clk 0:03:00]}  g6 {[%clk 0:02:57]} 3. e3 {[%clk 0:03:00]}  Bg7 {[%clk 0:02:52]} 4. Be2 {[%clk 0:03:00]}  O-O {[%clk 0:02:52]} 5. c4 {[%clk 0:03:00]}  c5 {[%clk 0:02:52]} 6. d5 {[%clk 0:02:59]}  d6 {[%clk 0:02:51]} 7. Nc3 {[%clk 0:02:58]}  Qa5 {[%clk 0:02:51]} 8. Bd2 {[%clk 0:02:55]}  a6 {[%clk 0:02:50]} 9. O-O {[%clk 0:02:48]}  Bg4 {[%clk 0:02:46]} 10. h3 {[%clk 0:02:45]}  Bxf3 {[%clk 0:02:45]} 11. Bxf3 {[%clk 0:02:46]}  Nbd7 {[%clk 0:02:45]} 12. Be2 {[%clk 0:02:31]}  Qc7 {[%clk 0:02:43]} 13. f4 {[%clk 0:02:28]}  Rfe8 {[%clk 0:02:39]} 14. e4 {[%clk 0:02:26]}  e6 {[%clk 0:02:38]} 15. Rc1 {[%clk 0:02:03]}  exd5 {[%clk 0:02:36]} 16. exd5 {[%clk 0:02:00]}  Re7 {[%clk 0:02:28]} 17. g4 {[%clk 0:01:50]}  Rae8 {[%clk 0:02:27]} 18. g5 {[%clk 0:01:45]}  Ne4 {[%clk 0:02:27]} 19. Nxe4 {[%clk 0:01:42]}  Rxe4 {[%clk 0:02:27]} 20. Bd3 {[%clk 0:01:35]}  Bd4+ {[%clk 0:02:03]} 21. Kg2 {[%clk 0:01:28]}  R4e7 {[%clk 0:01:59]} 22. Bc3 {[%clk 0:01:23]}  Bxc3 {[%clk 0:01:56]} 23. Rxc3 {[%clk 0:01:18]}  Qa5 {[%clk 0:01:51]} 24. a3 {[%clk 0:01:11]}  b5 {[%clk 0:01:49]} 25. h4 {[%clk 0:00:52]}  bxc4 {[%clk 0:01:49]} 26. Bxc4 {[%clk 0:00:46]}  Nb6 {[%clk 0:01:46]} 27. h5 {[%clk 0:00:38]}  Nxc4 {[%clk 0:01:45]} 28. Rxc4 {[%clk 0:00:39]}  Re2+ {[%clk 0:01:31]} 29. Rf2 {[%clk 0:00:38]}  Rxf2+ {[%clk 0:01:10]} 30. Kxf2 {[%clk 0:00:39]}  gxh5 {[%clk 0:01:10]} 31. Rc3 {[%clk 0:00:25]}  Qb5 {[%clk 0:01:01]} 32. b3 {[%clk 0:00:15]}  Qb6 {[%clk 0:00:53]} 33. Rc4 {[%clk 0:00:11]}  h4 {[%clk 0:00:47]} 34. Kg2 {[%clk 0:00:09]}  Qb7 {[%clk 0:00:40]} 35. Kh3 {[%clk 0:00:08]}  Qe7 {[%clk 0:00:36]} 36. Kxh4 {[%clk 0:00:06]}  h6 {[%clk 0:00:30]} 37. Kg4 {[%clk 0:00:03]}  hxg5 {[%clk 0:00:29]} 38. fxg5 {[%clk 0:00:03]}  Qd7+ {[%clk 0:00:28]} 39. Kg3 {[%clk 0:00:02]}  Re5 {[%clk 0:00:26]} 0-1


[Site "https://www.chess.com"]

[Event "Titled Tuesday Blitz April 26 Early 2022"]
[White "Samunenkov, Ihor"]
[Black "Ianov, Viktor"]
[WhiteFideId "14187086"]
[BlackFideId "14102730"]
[WhiteElo "2727"]
[BlackElo "2483"]
[Result "1-0"]
[Round "06"]
[TimeControl "180+1"]
[Date "2022.04.26"]
[WhiteClock "0:00:05"]
[BlackClock "0:00:31"]

1. e4 {[%clk 0:03:00]}  d6 {[%clk 0:02:59]} 2. d4 {[%clk 0:03:00]}  Nf6 {[%clk 0:03:00]} 3. Nc3 {[%clk 0:03:00]}  c6 {[%clk 0:03:00]} 4. f4 {[%clk 0:03:00]}  Qb6 {[%clk 0:03:00]} 5. Nf3 {[%clk 0:02:58]}  Bg4 {[%clk 0:02:59]} 6. Be2 {[%clk 0:02:51]}  Bxf3 {[%clk 0:02:59]} 7. Bxf3 {[%clk 0:02:51]}  e5 {[%clk 0:03:00]} 8. Ne2 {[%clk 0:02:44]}  Nbd7 {[%clk 0:02:59]} 9. c3 {[%clk 0:02:41]}  Be7 {[%clk 0:02:59]} 10. O-O {[%clk 0:02:40]}  O-O {[%clk 0:02:59]} 11. Qc2 {[%clk 0:02:25]}  c5 {[%clk 0:02:55]} 12. Be3 {[%clk 0:02:17]}  Rac8 {[%clk 0:02:54]} 13. Qd2 {[%clk 0:02:08]}  Qc7 {[%clk 0:02:47]} 14. Rac1 {[%clk 0:02:04]}  Rfe8 {[%clk 0:02:45]} 15. g4 {[%clk 0:01:56]}  Nb6 {[%clk 0:02:43]} 16. b3 {[%clk 0:01:55]}  exf4 {[%clk 0:02:34]} 17. Nxf4 {[%clk 0:01:52]}  Bf8 {[%clk 0:02:32]} 18. Qg2 {[%clk 0:01:51]}  Nbd5 {[%clk 0:02:14]} 19. Nxd5 {[%clk 0:01:34]}  Nxd5 {[%clk 0:02:13]} 20. Bd2 {[%clk 0:01:35]}  Nb6 {[%clk 0:02:06]} 21. g5 {[%clk 0:01:34]}  g6 {[%clk 0:02:02]} 22. Bg4 {[%clk 0:01:28]}  Rcd8 {[%clk 0:02:01]} 23. Rf4 {[%clk 0:01:22]}  Bg7 {[%clk 0:02:00]} 24. Be3 {[%clk 0:01:18]}  Qe7 {[%clk 0:01:55]} 25. Rcf1 {[%clk 0:01:01]}  Rf8 {[%clk 0:01:46]} 26. Qg3 {[%clk 0:00:52]}  Rde8 {[%clk 0:01:36]} 27. R1f3 {[%clk 0:00:52]}  cxd4 {[%clk 0:01:32]} 28. cxd4 {[%clk 0:00:52]}  d5 {[%clk 0:01:22]} 29. e5 {[%clk 0:00:51]}  Qc7 {[%clk 0:01:15]} 30. e6 {[%clk 0:00:45]}  Re7 {[%clk 0:01:03]} 31. Rxf7 {[%clk 0:00:35]}  Qxg3+ {[%clk 0:00:59]} 32. hxg3 {[%clk 0:00:30]}  Rfxf7 {[%clk 0:00:59]} 33. exf7+ {[%clk 0:00:31]}  Kf8 {[%clk 0:00:59]} 34. Kf2 {[%clk 0:00:19]}  Rxf7 {[%clk 0:00:58]} 35. Rxf7+ {[%clk 0:00:17]}  Kxf7 {[%clk 0:00:58]} 36. a4 {[%clk 0:00:17]}  a5 {[%clk 0:00:56]} 37. Ke2 {[%clk 0:00:17]}  Ke7 {[%clk 0:00:55]} 38. Kd3 {[%clk 0:00:17]}  Nd7 {[%clk 0:00:50]} 39. Bd2 {[%clk 0:00:15]}  b6 {[%clk 0:00:50]} 40. Bf4 {[%clk 0:00:15]}  Kd8 {[%clk 0:00:44]} 41. Bf3 {[%clk 0:00:14]}  Nf8 {[%clk 0:00:37]} 42. Bxd5 {[%clk 0:00:14]}  Kd7 {[%clk 0:00:37]} 43. Kc4 {[%clk 0:00:13]}  Ne6 {[%clk 0:00:37]} 44. Be5 {[%clk 0:00:05]}  Bxe5 {[%clk 0:00:35]} 45. Bxe6+ {[%clk 0:00:05]}  Kxe6 {[%clk 0:00:33]} 46. dxe5 {[%clk 0:00:06]}  Kxe5 {[%clk 0:00:33]} 47. Kb5 {[%clk 0:00:07]}  Kf5 {[%clk 0:00:32]} 48. Kxb6 {[%clk 0:00:08]}  Kxg5 {[%clk 0:00:33]} 49. Kxa5 {[%clk 0:00:07]}  h5 {[%clk 0:00:33]} 50. b4 {[%clk 0:00:08]}  Kg4 {[%clk 0:00:33]} 51. b5 {[%clk 0:00:08]}  Kxg3 {[%clk 0:00:33]} 52. b6 {[%clk 0:00:09]}  h4 {[%clk 0:00:34]} 53. b7 {[%clk 0:00:10]}  h3 {[%clk 0:00:34]} 54. b8=Q+ {[%clk 0:00:11]}  Kg2 {[%clk 0:00:34]} 55. Qb5 {[%clk 0:00:11]}  h2 {[%clk 0:00:33]} 56. Qg5+ {[%clk 0:00:10]}  Kf2 {[%clk 0:00:32]} 57. Qf4+ {[%clk 0:00:11]}  Kg2 {[%clk 0:00:33]} 58. Qg4+ {[%clk 0:00:11]}  Kf2 {[%clk 0:00:32]} 59. Qh3 {[%clk 0:00:11]}  Kg1 {[%clk 0:00:32]} 60. Qg3+ {[%clk 0:00:11]}  Kh1 {[%clk 0:00:31]} 61. Kb5 {[%clk 0:00:05]}  g5 {[%clk 0:00:31]} 62. a5 {[%clk 0:00:02]}  g4 {[%clk 0:00:31]} 63. Qe1+ {[%clk 0:00:01]}  Kg2 {[%clk 0:00:31]} 64. Qe2+ {[%clk 0:00:02]}  Kg1 {[%clk 0:00:30]} 65. Qxg4+ {[%clk 0:00:02]}  Kh1 {[%clk 0:00:31]} 66. Qh3 {[%clk 0:00:03]}  Kg1 {[%clk 0:00:30]} 67. Qxh2+ {[%clk 0:00:04]}  Kxh2 {[%clk 0:00:31]} 68. a6 {[%clk 0:00:05]} 1-0


[Site "https://www.chess.com"]

[Event "Titled Tuesday Blitz April 26 Early 2022"]
[White "Sarkar, Justin"]
[Black "Unver, Cumali"]
[WhiteFideId "2010011"]
[BlackFideId "6304940"]
[WhiteElo "2038"]
[BlackElo "2013"]
[Result "1-0"]
[Round "06"]
[TimeControl "180+1"]
[Date "2022.04.26"]
[WhiteClock "0:01:44"]
[BlackClock "0:01:28"]

1. e4 {[%clk 0:02:57]}  e5 {[%clk 0:02:58]} 2. Nc3 {[%clk 0:02:53]}  Nf6 {[%clk 0:02:57]} 3. Bc4 {[%clk 0:02:53]}  Nc6 {[%clk 0:02:56]} 4. d3 {[%clk 0:02:49]}  Na5 {[%clk 0:02:55]} 5. Nge2 {[%clk 0:02:46]}  Nxc4 {[%clk 0:02:53]} 6. dxc4 {[%clk 0:02:47]}  Be7 {[%clk 0:02:51]} 7. O-O {[%clk 0:02:46]}  d6 {[%clk 0:02:50]} 8. Qd3 {[%clk 0:02:39]}  c6 {[%clk 0:02:49]} 9. a4 {[%clk 0:02:34]}  a5 {[%clk 0:02:47]} 10. b3 {[%clk 0:02:29]}  O-O {[%clk 0:02:45]} 11. Ba3 {[%clk 0:02:22]}  Qc7 {[%clk 0:02:34]} 12. Rad1 {[%clk 0:02:21]}  Rd8 {[%clk 0:02:34]} 13. Ng3 {[%clk 0:02:15]}  g6 {[%clk 0:02:29]} 14. Bc1 {[%clk 0:02:11]}  Be6 {[%clk 0:02:27]} 15. Bg5 {[%clk 0:02:08]}  Rd7 {[%clk 0:02:22]} 16. Nf5 {[%clk 0:01:54]}  Qd8 {[%clk 0:02:12]} 17. Nxe7+ {[%clk 0:01:51]}  Qxe7 {[%clk 0:02:10]} 18. f4 {[%clk 0:01:48]}  h6 {[%clk 0:01:27]} 19. Bxf6 {[%clk 0:01:44]}  Qxf6 {[%clk 0:01:28]} 20. f5 {[%clk 0:01:44]} 1-0


[Site "https://www.chess.com"]

[Event "Titled Tuesday Blitz April 26 Early 2022"]
[White "Seemann, Jakub"]
[Black "Silvestre, Christian"]
[WhiteFideId "21874697"]
[BlackFideId "30956269"]
[WhiteElo "2636"]
[BlackElo "2335"]
[Result "1-0"]
[Round "06"]
[TimeControl "180+1"]
[Date "2022.04.26"]
[WhiteClock "0:01:42"]
[BlackClock "0:00:01"]

1. Nf3 {[%clk 0:03:00]}  Nf6 {[%clk 0:02:59]} 2. b3 {[%clk 0:03:01]}  g6 {[%clk 0:02:56]} 3. Bb2 {[%clk 0:03:02]}  Bg7 {[%clk 0:02:56]} 4. e3 {[%clk 0:02:59]}  O-O {[%clk 0:02:54]} 5. Be2 {[%clk 0:02:59]}  d5 {[%clk 0:02:54]} 6. O-O {[%clk 0:03:00]}  a5 {[%clk 0:02:54]} 7. a3 {[%clk 0:02:58]}  c6 {[%clk 0:02:51]} 8. c4 {[%clk 0:02:58]}  Qb6 {[%clk 0:02:47]} 9. d3 {[%clk 0:02:57]}  Rd8 {[%clk 0:02:44]} 10. Nbd2 {[%clk 0:02:57]}  Na6 {[%clk 0:02:42]} 11. Qc2 {[%clk 0:02:57]}  Bf5 {[%clk 0:02:38]} 12. Ne5 {[%clk 0:02:56]}  Qc7 {[%clk 0:02:28]} 13. Ndf3 {[%clk 0:02:55]}  dxc4 {[%clk 0:02:22]} 14. bxc4 {[%clk 0:02:54]}  Nc5 {[%clk 0:02:20]} 15. Rfd1 {[%clk 0:02:47]}  a4 {[%clk 0:02:14]} 16. h3 {[%clk 0:02:39]}  Nb3 {[%clk 0:02:12]} 17. Rab1 {[%clk 0:02:39]}  Rac8 {[%clk 0:02:00]} 18. e4 {[%clk 0:02:39]}  Bd7 {[%clk 0:01:57]} 19. d4 {[%clk 0:02:34]}  Be8 {[%clk 0:01:54]} 20. c5 {[%clk 0:02:33]}  Nd7 {[%clk 0:01:42]} 21. Nc4 {[%clk 0:02:27]}  b5 {[%clk 0:01:33]} 22. cxb6 {[%clk 0:02:24]}  Nxb6 {[%clk 0:01:32]} 23. Nxb6 {[%clk 0:02:21]}  Qxb6 {[%clk 0:01:31]} 24. Bc4 {[%clk 0:02:21]}  c5 {[%clk 0:01:27]} 25. d5 {[%clk 0:02:14]}  Bb5 {[%clk 0:01:21]} 26. Bxg7 {[%clk 0:02:13]}  Bxc4 {[%clk 0:01:14]} 27. Bh6 {[%clk 0:01:57]}  Ba6 {[%clk 0:01:06]} 28. Qc3 {[%clk 0:01:56]}  f6 {[%clk 0:01:02]} 29. e5 {[%clk 0:01:55]}  c4 {[%clk 0:00:55]} 30. d6 {[%clk 0:01:54]}  Kf7 {[%clk 0:00:24]} 31. dxe7 {[%clk 0:01:43]}  Rxd1+ {[%clk 0:00:22]} 32. Rxd1 {[%clk 0:01:44]}  Kxe7 {[%clk 0:00:15]} 33. exf6+ {[%clk 0:01:44]}  Kf7 {[%clk 0:00:12]} 34. Ng5+ {[%clk 0:01:42]}  Kg8 {[%clk 0:00:01]} 35. f7# {[%clk 0:01:42]} 1-0


[Site "https://www.chess.com"]

[Event "Titled Tuesday Blitz April 26 Early 2022"]
[White "Shankland, Sam"]
[Black "Maghsoodloo, Parham"]
[WhiteFideId "2004887"]
[BlackFideId "12539929"]
[WhiteElo "2618"]
[BlackElo "2630"]
[Result "1-0"]
[Round "06"]
[TimeControl "180+1"]
[Date "2022.04.26"]
[WhiteClock "0:01:35"]
[BlackClock "0:00:01"]

1. d4 {[%clk 0:03:00]}  Nf6 {[%clk 0:02:59]} 2. c4 {[%clk 0:03:01]}  g6 {[%clk 0:03:00]} 3. Nc3 {[%clk 0:02:59]}  d5 {[%clk 0:03:00]} 4. Nf3 {[%clk 0:02:59]}  Bg7 {[%clk 0:03:00]} 5. Qb3 {[%clk 0:02:59]}  dxc4 {[%clk 0:02:59]} 6. Qxc4 {[%clk 0:03:00]}  O-O {[%clk 0:02:57]} 7. e4 {[%clk 0:03:00]}  a6 {[%clk 0:02:58]} 8. Be2 {[%clk 0:02:59]}  b5 {[%clk 0:02:57]} 9. Qb3 {[%clk 0:03:00]}  Bb7 {[%clk 0:02:48]} 10. e5 {[%clk 0:03:00]}  Nd5 {[%clk 0:02:48]} 11. O-O {[%clk 0:02:58]}  c5 {[%clk 0:02:37]} 12. dxc5 {[%clk 0:02:57]}  e6 {[%clk 0:02:17]} 13. Bg5 {[%clk 0:02:49]}  Qc7 {[%clk 0:02:17]} 14. Nxd5 {[%clk 0:02:38]}  Bxd5 {[%clk 0:02:17]} 15. Qe3 {[%clk 0:02:39]}  Nd7 {[%clk 0:01:58]} 16. Be7 {[%clk 0:02:38]}  Nxe5 {[%clk 0:01:54]} 17. Bd6 {[%clk 0:02:33]}  Nxf3+ {[%clk 0:01:49]} 18. Bxf3 {[%clk 0:02:34]}  Qc6 {[%clk 0:01:48]} 19. Bxd5 {[%clk 0:02:33]}  exd5 {[%clk 0:01:47]} 20. Bxf8 {[%clk 0:02:32]}  Rxf8 {[%clk 0:01:41]} 21. Rad1 {[%clk 0:02:31]}  d4 {[%clk 0:01:11]} 22. Rxd4 {[%clk 0:02:23]}  Bxd4 {[%clk 0:01:10]} 23. Qxd4 {[%clk 0:02:24]}  Re8 {[%clk 0:01:10]} 24. Rd1 {[%clk 0:02:20]}  Re2 {[%clk 0:01:02]} 25. h3 {[%clk 0:02:14]}  a5 {[%clk 0:00:31]} 26. b3 {[%clk 0:01:48]}  Rc2 {[%clk 0:00:20]} 27. Qe5 {[%clk 0:01:46]}  Qc8 {[%clk 0:00:06]} 28. Rd5 {[%clk 0:01:45]}  h5 {[%clk 0:00:05]} 29. Qd4 {[%clk 0:01:41]}  Rc1+ {[%clk 0:00:03]} 30. Kh2 {[%clk 0:01:41]}  Qc7+ {[%clk 0:00:04]} 31. f4 {[%clk 0:01:38]}  Kh7 {[%clk 0:00:03]} 32. Rd8 {[%clk 0:01:37]}  f6 {[%clk 0:00:02]} 33. Qxf6 {[%clk 0:01:36]}  Qg7 {[%clk 0:00:01]} 34. Qd6 {[%clk 0:01:35]} 1-0


[Site "https://www.chess.com"]

[Event "Titled Tuesday Blitz April 26 Early 2022"]
[White "Skliarov, Viktor"]
[Black "Hoffmann, Asa"]
[WhiteFideId "14106736"]
[BlackFideId "2001470"]
[WhiteElo "2229"]
[BlackElo "2117"]
[Result "1-0"]
[Round "06"]
[TimeControl "180+1"]
[Date "2022.04.26"]
[WhiteClock "0:00:08"]
[BlackClock "0:00:41"]

1. e4 {[%clk 0:03:00]}  d6 {[%clk 0:02:57]} 2. d4 {[%clk 0:03:00]}  Nf6 {[%clk 0:02:56]} 3. Nc3 {[%clk 0:03:01]}  c6 {[%clk 0:02:56]} 4. f3 {[%clk 0:02:59]}  Nbd7 {[%clk 0:02:56]} 5. Be3 {[%clk 0:02:59]}  e5 {[%clk 0:02:55]} 6. Nge2 {[%clk 0:02:59]}  Be7 {[%clk 0:02:54]} 7. Qd2 {[%clk 0:02:59]}  b5 {[%clk 0:02:53]} 8. g4 {[%clk 0:02:59]}  Nb6 {[%clk 0:02:51]} 9. Ng3 {[%clk 0:02:59]}  Qc7 {[%clk 0:02:51]} 10. g5 {[%clk 0:02:58]}  Nfd7 {[%clk 0:02:49]} 11. Nf5 {[%clk 0:02:58]}  Bf8 {[%clk 0:02:47]} 12. O-O-O {[%clk 0:02:47]}  g6 {[%clk 0:02:45]} 13. dxe5 {[%clk 0:02:19]}  dxe5 {[%clk 0:02:37]} 14. Nd6+ {[%clk 0:02:17]}  Bxd6 {[%clk 0:02:36]} 15. Qxd6 {[%clk 0:02:18]}  Qxd6 {[%clk 0:02:36]} 16. Rxd6 {[%clk 0:02:19]}  Bb7 {[%clk 0:02:30]} 17. Nxb5 {[%clk 0:01:27]}  cxb5 {[%clk 0:02:24]} 18. Bxb5 {[%clk 0:01:28]}  O-O-O {[%clk 0:02:21]} 19. Rhd1 {[%clk 0:01:25]}  Kc7 {[%clk 0:01:53]} 20. Bxd7 {[%clk 0:00:52]}  Nxd7 {[%clk 0:01:49]} 21. Bxa7 {[%clk 0:00:52]}  Bc6 {[%clk 0:01:41]} 22. a3 {[%clk 0:00:36]}  Rhe8 {[%clk 0:01:32]} 23. Be3 {[%clk 0:00:31]}  Re6 {[%clk 0:01:31]} 24. R6d3 {[%clk 0:00:31]}  Rf8 {[%clk 0:01:20]} 25. c4 {[%clk 0:00:30]}  f5 {[%clk 0:01:16]} 26. gxf6 {[%clk 0:00:16]}  Rfxf6 {[%clk 0:01:14]} 27. b4 {[%clk 0:00:17]}  Rxf3 {[%clk 0:01:00]} 28. b5 {[%clk 0:00:17]}  Rxe3 {[%clk 0:00:53]} 29. Rxe3 {[%clk 0:00:14]}  Bb7 {[%clk 0:00:52]} 30. a4 {[%clk 0:00:15]}  Nc5 {[%clk 0:00:51]} 31. a5 {[%clk 0:00:15]}  Bxe4 {[%clk 0:00:50]} 32. b6+ {[%clk 0:00:11]}  Kb7 {[%clk 0:00:50]} 33. Kb2 {[%clk 0:00:12]}  Bc6 {[%clk 0:00:47]} 34. Rf1 {[%clk 0:00:11]}  Re7 {[%clk 0:00:45]} 35. Kc3 {[%clk 0:00:11]}  e4 {[%clk 0:00:44]} 36. Rf8 {[%clk 0:00:08]}  Nd7 {[%clk 0:00:43]} 37. Rh8 {[%clk 0:00:08]}  Nf6 {[%clk 0:00:43]} 38. Kb4 {[%clk 0:00:07]}  Ng4 {[%clk 0:00:42]} 39. Ra3 {[%clk 0:00:07]}  e3 {[%clk 0:00:41]} 40. c5 {[%clk 0:00:08]}  e2 {[%clk 0:00:41]} 41. a6# {[%clk 0:00:08]} 1-0


[Site "https://www.chess.com"]